bitfinex/quotes_BTCUSD_20240701
["timestamp","ask_amount","ask_price","bid_price","bid_amount"]
[1719813048664,7.28910647,63489.0,63488.0,0.39824885]
[1719813049385,7.12677276,63489.0,63488.0,0.39824885]
[1719813051432,7.12677269,63489.0,63488.0,0.39824885]
[1719813051764,7.06379573,63489.0,63488.0,0.39824885]
[1719813051987,7.12676179,63489.0,63488.0,0.39824885]
[1719813054552,7.0471369,63489.0,63488.0,0.39824885]
[1719813054747,7.12676622,63489.0,63488.0,0.39824885]
[1719813055518,7.28909993,63489.0,63488.0,0.39824885]
[1719813057640,7.22612877,63489.0,63488.0,0.39824885]
[1719813057838,7.28910572,63489.0,63488.0,0.39824885]
[1719813060664,7.28910651,63489.0,63488.0,0.39824885]
[1719813063239,7.22334751,63489.0,63488.0,0.39824885]
[1719813063479,7.14371161,63489.0,63488.0,0.39824885]
[1719813063655,7.22335061,63489.0,63488.0,0.39824885]
[1719813063903,7.22328588,63489.0,63488.0,0.39824885]
[1719813064316,7.06095217,63489.0,63488.0,0.39824885]
[1719813066507,7.06168837,63489.0,63488.0,0.39824885]
[1719813068017,7.06168837,63489.0,63488.0,0.38624885]
[1719813068645,7.06168837,63489.0,63488.0,0.33324885]
[1719813069412,7.00517028,63489.0,63488.0,0.33324885]
[1719813069636,7.02185532,63489.0,63488.0,0.33324885]
[1719813070056,7.18418903,63489.0,63488.0,0.32251128]
[1719813070774,7.15588637,63489.0,63488.0,0.32251128]
[1719813071302,7.38857209,63489.0,63488.0,0.32251128]
[1719813072275,7.15588637,63489.0,63488.0,0.32251128]
[1719813075838,7.09259399,63489.0,63488.0,0.32251128]
[1719813076042,7.15589147,63489.0,63488.0,0.32251128]
[1719813076410,7.31509947,63489.0,63488.0,0.32251128]
[1719813079136,7.3150752,63489.0,63488.0,0.32251128]
[1719813080527,7.2507732,63489.0,63488.0,0.32251128]
[1719813082311,7.25077626,63489.0,63488.0,0.32251128]
[1719813085519,7.25086782,63489.0,63488.0,0.32251128]
[1719813087384,7.32426782,63489.0,63488.0,0.32251128]
[1719813088537,7.24421495,63489.0,63488.0,0.32251128]
[1719813088753,7.32416609,63489.0,63488.0,0.32251128]
[1719813088953,7.24421495,63489.0,63488.0,0.32251128]
[1719813089152,7.3241623,63489.0,63488.0,0.32251128]
[1719813091365,7.32421112,63489.0,63488.0,0.32251128]
[1719813091841,7.24421495,63489.0,63488.0,0.32251128]
[1719813092040,7.32421524,63489.0,63488.0,0.32251128]
[1719813095048,7.24421495,63489.0,63488.0,0.32251128]
[1719813095250,7.32421283,63489.0,63488.0,0.32251128]
[1719813097964,7.32421283,63489.0,63488.0,0.31443976]
[1719813098107,7.16187912,63489.0,63488.0,0.46193976]
[1719813098311,7.1618966,63489.0,63488.0,0.46193976]
[1719813099335,7.3659876,63489.0,63488.0,0.46193976]
[1719813099618,7.2519276,63489.0,63488.0,0.46193976]
[1719813099815,6.1606406,63489.0,63488.0,0.46193976]
[1719813101511,6.08062524,63489.0,63488.0,0.46193976]
[1719813101716,6.16042963,63489.0,63488.0,0.46193976]
[1719813101943,6.01515758,63489.0,63488.0,0.46193976]
[1719813102143,6.07829133,63489.0,63488.0,0.46193976]
[1719813104696,6.07823146,63489.0,63488.0,0.46193976]
[1719813104944,6.24056517,63489.0,63488.0,0.46193976]
[1719813106857,6.24056517,63489.0,63488.0,0.39743976]
[1719813107165,6.47358221,63489.0,63488.0,0.39743976]
[1719813107966,6.41047975,63489.0,63488.0,0.39743976]
[1719813108167,6.47340552,63489.0,63488.0,0.39743976]
[1719813111043,6.47335448,63489.0,63488.0,0.39743976]
[1719813111895,6.31102077,63489.0,63488.0,0.39743976]
[1719813113041,5.89960577,63489.0,63488.0,0.45186156]
[1719813113402,1.53629196,63489.0,63488.0,0.45186156]
[1719813113605,1.71190796,63489.0,63488.0,0.45186156]
[1719813113777,1.87163402,63489.0,63488.0,0.45186156]
[1719813113952,1.84363402,63489.0,63488.0,0.45186156]
[1719813114132,1.66725609,63489.0,63488.0,0.45186156]
[1719813114349,1.69525609,63489.0,63488.0,0.45186156]
[1719813114536,1.61964009,63489.0,63488.0,0.45186156]
[1719813114838,1.60564009,63489.0,63488.0,0.45186156]
[1719813115208,1.74835836,63489.0,63488.0,0.45186156]
[1719813115412,1.73435836,63489.0,63488.0,0.45186156]
[1719813115617,1.59254829,63489.0,63488.0,0.45186156]
[1719813115728,1.61554829,63489.0,63488.0,0.45186156]
[1719813116239,1.77132086,63489.0,63488.0,0.45186156]
[1719813117044,1.75732086,63489.0,63488.0,0.45186156]
[1719813117244,1.61554829,63489.0,63488.0,0.45186156]
[1719813117663,1.62954829,63489.0,63488.0,0.45186156]
[1719813117875,1.61554829,63489.0,63488.0,0.45186156]
[1719813118081,1.60154829,63489.0,63488.0,0.45186156]
[1719813118283,1.61554829,63489.0,63488.0,0.45186156]
[1719813118484,1.62954829,63489.0,63488.0,0.45186156]
[1719813121725,1.61554829,63489.0,63488.0,0.45186156]
[1719813122214,1.62954829,63489.0,63488.0,0.45186156]
[1719813131309,1.55614829,63489.0,63488.0,0.45186156]
[1719813131555,1.62954829,63489.0,63488.0,0.45186156]
[1719813133177,1.74750834,63489.0,63488.0,0.45186156]
[1719813133620,1.62954829,63489.0,63488.0,0.45186156]
[1719813134519,1.74750834,63489.0,63488.0,0.45186156]
[1719813134724,1.62954829,63489.0,63488.0,0.45186156]
[1719813136898,1.74749701,63489.0,63488.0,0.45186156]
[1719813138889,1.74749952,63489.0,63488.0,0.45186156]
[1719813139302,1.74750276,63489.0,63488.0,0.45186156]
[1719813139951,1.24133776,63489.0,63488.0,0.67186156]
[1719813140200,0.14427647,63489.0,63488.0,0.67186156]
[1719813140410,0.157502,63491.0,63490.0,0.1405]
[1719813140613,0.157502,63491.0,63490.0,1.2207]
[1719813140614,0.18216184,63491.0,63490.0,1.2207]
[1719813141393,0.18216184,63491.0,63490.0,1.0007]
[1719813141582,0.35292562,63491.0,63490.0,1.0007]
[1719813141964,0.38092562,63491.0,63490.0,1.0007]
[1719813142161,0.38092485,63491.0,63490.0,1.0007]
[1719813142366,0.69592985,63491.0,63490.0,1.0007]
[1719813143189,0.62516684,63491.0,63490.0,1.0007]
[1719813143397,0.69593145,63491.0,63490.0,1.0007]
[1719813144342,0.6959339,63491.0,63490.0,1.0007]
[1719813145294,0.62516684,63491.0,63490.0,1.0007]
[1719813147832,0.94017184,63491.0,63490.0,1.0007]
[1719813149403,1.03454655,63491.0,63490.0,1.0007]
[1719813149851,1.03454655,63491.0,63490.0,1.2007]
[1719813150455,1.03454655,63491.0,63490.0,1.2207]
[1719813150658,1.03454655,63491.0,63490.0,1.2007]
[1719813150872,1.03454655,63491.0,63490.0,1.2207]
[1719813151491,0.94017184,63491.0,63490.0,1.2007]
[1719813151692,0.94017184,63491.0,63490.0,1.2207]
[1719813151892,0.94017184,63491.0,63490.0,1.2007]
[1719813152093,0.94017184,63491.0,63490.0,1.2207]
[1719813153256,1.03456946,63491.0,63490.0,1.2207]
[1719813154831,0.94017184,63491.0,63490.0,1.2207]
[1719813155854,0.62516684,63491.0,63490.0,1.2207]
[1719813156151,0.62516684,63491.0,63490.0,1.0007]
[1719813156347,0.62516684,63491.0,63490.0,1.2007]
[1719813156553,0.62516684,63491.0,63490.0,1.2207]
[1719813158388,0.62516684,63491.0,63490.0,1.0007]
[1719813159128,0.62516684,63491.0,63490.0,1.2007]
[1719813159533,0.31016184,63491.0,63490.0,1.2207]
[1719813159755,0.31016184,63491.0,63490.0,1.2007]
[1719813160385,0.31016184,63491.0,63490.0,1.0007]
[1719813161382,0.31016184,63491.0,63490.0,1.2207]
[1719813162016,0.31016184,63491.0,63490.0,1.0007]
[1719813162910,0.31016184,63491.0,63490.0,1.2207]
[1719813163122,0.31016184,63491.0,63490.0,1.0007]
[1719813163877,0.31016184,63491.0,63490.0,1.2207]
[1719813167600,0.31016184,63491.0,63490.0,1.0007]
[1719813170257,0.62516684,63491.0,63490.0,1.0007]
[1719813174928,0.62600684,63491.0,63490.0,1.0007]
[1719813178893,0.62600684,63491.0,63490.0,1.2007]
[1719813179754,0.62600684,63491.0,63490.0,1.2207]
[1719813182504,0.31100184,63491.0,63490.0,1.2207]
[1719813182739,0.31100184,63491.0,63490.0,1.2007]
[1719813183462,0.31100184,63491.0,63490.0,1.2207]
[1719813185663,0.45294041,63491.0,63490.0,1.2207]
[1719813188852,0.31100184,63491.0,63490.0,1.2207]
[1719813189062,0.45300547,63491.0,63490.0,1.2207]
[1719813192098,0.45300438,63491.0,63490.0,1.2207]
[1719813192498,0.31100184,63491.0,63490.0,1.2207]
[1719813193286,0.31100184,63491.0,63490.0,1.0007]
[1719813193287,0.45300468,63491.0,63490.0,1.0007]
[1719813193498,0.31100184,63491.0,63490.0,1.0007]
[1719813193902,0.31100184,63491.0,63490.0,1.2007]
[1719813194681,0.31100184,63491.0,63490.0,1.0007]
[1719813195153,0.31100184,63491.0,63490.0,0.9398]
[1719813196143,0.62600684,63491.0,63490.0,0.9398]
[1719813196778,0.62600684,63491.0,63490.0,0.8602]
[1719813198351,0.62600684,63491.0,63490.0,1.0602]
[1719813198578,0.62600684,63491.0,63490.0,0.8602]
[1719813199439,0.76801624,63491.0,63490.0,0.8602]
[1719813199646,0.62600684,63491.0,63490.0,0.8602]
[1719813200327,0.76801629,63491.0,63490.0,0.8602]
[1719813200651,0.62600684,63491.0,63490.0,0.8602]
[1719813200886,0.76801659,63491.0,63490.0,0.8602]
[1719813201100,0.76801659,63491.0,63490.0,1.0602]
[1719813201318,0.62600684,63491.0,63490.0,1.0602]
[1719813201519,0.62600684,63491.0,63490.0,1.0802]
[1719813202330,0.62600684,63491.0,63490.0,1.0602]
[1719813202531,0.62600684,63491.0,63490.0,1.0802]
[1719813202705,0.62600684,63491.0,63490.0,1.1564]
[1719813203509,0.76801543,63491.0,63490.0,1.2165]
[1719813204762,0.76801541,63491.0,63490.0,1.2165]
[1719813207858,0.62600684,63491.0,63490.0,1.2165]
[1719813208090,0.76801359,63491.0,63490.0,1.2165]
[1719813208712,0.45300859,63491.0,63490.0,1.2165]
[1719813209529,0.29550659,63491.0,63490.0,1.2165]
[1719813210327,0.15349984,63491.0,63490.0,1.2165]
[1719813210555,0.15349984,63491.0,63490.0,1.39334305]
[1719813210762,0.15349984,63491.0,63490.0,1.40334305]
[1719813210763,0.05349984,63491.0,63490.0,1.40334305]
[1719813210966,0.05349984,63491.0,63490.0,1.71835305]
[1719813211171,0.15349984,63491.0,63490.0,1.71835305]
[1719813211387,0.12446433,63491.0,63490.0,2.34837305]
[1719813211586,0.02884,63491.0,63490.0,2.51071203]
[1719813212116,0.02884,63491.0,63490.0,2.58411203]
[1719813212117,0.01484,63491.0,63490.0,2.58411203]
[1719813212944,0.01484,63491.0,63490.0,2.58511203]
[1719813213142,0.00084,63491.0,63490.0,2.58411203]
[1719813213359,0.00084,63491.0,63490.0,2.58711203]
[1719813213558,0.00184,63491.0,63490.0,2.58711203]
[1719813228786,0.00184,63491.0,63490.0,2.78711203]
[1719813234546,0.00184,63491.0,63490.0,2.71371203]
[1719813234746,0.00184,63491.0,63490.0,2.78711203]
[1719813236055,0.00184,63491.0,63490.0,2.51371203]
[1719813236255,0.00184,63491.0,63490.0,2.58711203]
[1719813239550,0.00184,63491.0,63490.0,2.78711203]
[1719813241227,0.00184,63491.0,63490.0,2.58711203]
[1719813241458,0.00184,63491.0,63490.0,2.71797207]
[1719813241628,0.00184,63491.0,63490.0,2.91797207]
[1719813241849,0.00184,63491.0,63490.0,2.78711203]
[1719813242059,0.00184,63491.0,63490.0,2.91797215]
[1719813242270,0.00184,63491.0,63490.0,2.91797182]
[1719813244554,0.00184,63491.0,63490.0,2.71797182]
[1719813245034,0.00184,63491.0,63490.0,2.7179713]
[1719813245248,0.00184,63491.0,63490.0,2.58711203]
[1719813245444,0.00184,63491.0,63490.0,2.71797128]
[1719813246260,0.00184,63491.0,63490.0,2.58711203]
[1719813251451,0.00184,63491.0,63490.0,2.78711203]
[1719813252398,0.00184,63491.0,63490.0,2.91797308]
[1719813254677,0.00184,63491.0,63490.0,3.43298221]
[1719813254825,0.00184,63491.0,63490.0,3.74799221]
[1719813255018,0.00184,63491.0,63490.0,3.64013203]
[1719813255222,0.00184,63491.0,63490.0,3.9709861]
[1719813255443,0.00184,63491.0,63490.0,3.7709861]
[1719813255642,0.00184,63491.0,63490.0,3.9709861]
[1719813255861,0.00184,63491.0,63490.0,4.0150445]
[1719813256068,0.00184,63491.0,63490.0,3.9679861]
[1719813256329,0.00284,63491.0,63490.0,3.6349761]
[1719813256891,0.00184,63491.0,63490.0,3.6349761]
[1719813257467,0.00184,63491.0,63490.0,3.5625761]
[1719813257744,0.00184,63491.0,63490.0,3.6359761]
[1719813258271,0.00184,63491.0,63490.0,3.2359761]
[1719813258482,0.00184,63491.0,63490.0,3.4359761]
[1719813259620,0.00184,63491.0,63490.0,3.2359761]
[1719813259821,0.00184,63491.0,63490.0,3.4359761]
[1719813260894,0.00184,63491.0,63490.0,3.10512203]
[1719813261102,0.00184,63491.0,63490.0,3.4359764]
[1719813262430,0.00184,63491.0,63490.0,3.2359764]
[1719813262851,0.00184,63491.0,63490.0,2.9209664]
[1719813263923,0.00184,63491.0,63490.0,2.79011203]
[1719813264226,0.00184,63491.0,63490.0,2.92097222]
[1719813265702,0.00184,63491.0,63490.0,2.78467222]
[1719813266141,0.00184,63491.0,63490.0,2.65381203]
[1719813268324,0.00184,63491.0,63490.0,2.26540203]
[1719813268534,0.00184,63491.0,63490.0,2.33880203]
[1719813271982,0.00184,63491.0,63490.0,2.13880203]
[1719813274257,0.00184,63491.0,63490.0,2.28410203]
[1719813274487,0.113,63497.0,63496.0,0.01]
[1719813274488,0.10982419,63497.0,63496.0,0.01]
[1719813274665,0.10982419,63497.0,63496.0,0.94355]
[1719813274867,0.10982419,63497.0,63496.0,1.15355]
[1719813275406,0.10982419,63497.0,63496.0,1.17288805]
[1719813275625,0.11282419,63497.0,63496.0,1.17288805]
[1719813276019,0.11982419,63497.0,63496.0,1.17388805]
[1719813277814,0.43479919,63497.0,63496.0,0.88048805]
[1719813277966,0.43479919,63497.0,63496.0,1.08048805]
[1719813277967,0.68787768,63497.0,63496.0,1.08048805]
[1719813278168,0.68787768,63497.0,63496.0,0.86115]
[1719813278169,0.71152323,63497.0,63496.0,0.86115]
[1719813278350,1.02649823,63497.0,63496.0,0.86115]
[1719813278556,1.15014378,63497.0,63496.0,0.86115]
[1719813278939,1.15014378,63497.0,63496.0,0.86015]
[1719813278940,1.02191602,63497.0,63496.0,0.86015]
[1719813279132,1.03591602,63497.0,63496.0,0.86115]
[1719813279340,1.16609234,63497.0,63496.0,0.86215]
[1719813279925,1.04791602,63497.0,63496.0,0.86215]
[1719813280122,1.16609178,63497.0,63496.0,0.86215]
[1719813280323,1.36289102,63497.0,63496.0,0.86215]
[1719813280667,1.52523,63497.0,63496.0,0.86215]
[1719813280994,1.61994,63497.0,63496.0,0.86215]
[1719813281618,1.304965,63497.0,63496.0,0.86215]
[1719813282021,1.278965,63497.0,63496.0,0.86015]
[1719813282245,1.292965,63497.0,63496.0,0.86015]
[1719813282449,0.82939472,63497.0,63496.0,1.06015]
[1719813282663,0.72094102,63497.0,63496.0,1.06015]
[1719813283006,0.72094102,63497.0,63496.0,1.08015]
[1719813283780,0.72094102,63497.0,63496.0,0.86015]
[1719813283992,0.72094102,63497.0,63496.0,1.06015]
[1719813284171,0.73494102,63497.0,63496.0,1.06015]
[1719813284908,0.70694102,63497.0,63496.0,1.06015]
[1719813285127,0.79177625,63497.0,63496.0,1.06015]
[1719813285347,0.80577625,63497.0,63496.0,1.08015]
[1719813285523,0.77777625,63497.0,63496.0,1.08015]
[1719813285658,0.79177625,63497.0,63496.0,1.08015]
[1719813286075,0.80575245,63497.0,63496.0,1.08015]
[1719813286479,0.73494102,63497.0,63496.0,1.08015]
[1719813287293,0.73494102,63497.0,63496.0,0.86015]
[1719813292055,0.73494102,63497.0,63496.0,1.08015]
[1719813294490,0.73494102,63497.0,63496.0,1.06015]
[1719813295735,0.73494102,63497.0,63496.0,1.08015]
[1719813296287,0.73494102,63497.0,63496.0,0.86015]
[1719813300398,1.04991602,63497.0,63496.0,0.86015]
[1719813301865,1.04991602,63497.0,63496.0,1.06015]
[1719813303070,1.04991602,63497.0,63496.0,1.08015]
[1719813303411,1.04991602,63497.0,63496.0,1.06015]
[1719813303613,1.04991602,63497.0,63496.0,0.86015]
[1719813303731,1.05075602,63497.0,63496.0,0.86015]
[1719813304781,1.12415602,63497.0,63496.0,0.86015]
[1719813309416,1.21854541,63497.0,63496.0,0.86015]
[1719813310323,1.20454541,63497.0,63496.0,0.86015]
[1719813310425,1.19054541,63497.0,63496.0,0.86015]
[1719813310634,1.20454541,63497.0,63496.0,0.86015]
[1719813310833,1.21857081,63497.0,63496.0,0.86015]
[1719813311258,1.20457081,63497.0,63496.0,0.86015]
[1719813311458,1.82552,63497.0,63496.0,0.86015]
[1719813311662,2.05224849,63497.0,63496.0,0.86015]
[1719813311830,2.28885175,63497.0,63496.0,0.86015]
[1719813312028,2.27485175,63497.0,63496.0,0.86015]
[1719813312228,2.28885175,63497.0,63496.0,0.86015]
[1719813312457,2.27485175,63497.0,63496.0,0.86015]
[1719813313032,2.28885175,63497.0,63496.0,0.86015]
[1719813313360,2.26085175,63497.0,63496.0,0.86015]
[1719813313791,2.27485175,63497.0,63496.0,0.86015]
[1719813313992,2.28896352,63497.0,63496.0,0.86015]
[1719813314596,2.27496352,63497.0,63496.0,0.86015]
[1719813314802,2.28896352,63497.0,63496.0,0.86015]
[1719813316671,2.46962547,63497.0,63496.0,0.86015]
[1719813317299,2.469631,63497.0,63496.0,0.86015]
[1719813320336,2.46965549,63497.0,63496.0,0.86015]
[1719813320556,5.32520649,63497.0,63496.0,0.86015]
[1719813320952,5.30493249,63497.0,63496.0,0.86015]
[1719813321153,5.05493249,63497.0,63496.0,0.86015]
[1719813321779,5.36990749,63497.0,63496.0,0.86015]
[1719813321981,5.05493249,63497.0,63496.0,0.86015]
[1719813322928,5.36990749,63497.0,63496.0,0.86015]
[1719813323323,5.7322412,63497.0,63496.0,0.86015]
[1719813323536,5.73219333,63497.0,63496.0,0.86015]
[1719813324039,5.77309945,63497.0,63496.0,0.86015]
[1719813325066,5.61076574,63497.0,63496.0,0.86015]
[1719813325423,5.56985962,63497.0,63496.0,0.86015]
[1719813325630,5.54185962,63497.0,63496.0,0.86015]
[1719813325823,5.56985962,63497.0,63496.0,0.86015]
[1719813326661,5.55311895,63497.0,63496.0,0.86015]
[1719813326982,5.56984007,63497.0,63496.0,0.89587474]
[1719813327724,5.56984007,63497.0,63496.0,0.92412341]
[1719813328365,5.54054007,63497.0,63496.0,0.92412341]
[1719813329764,5.54054033,63497.0,63496.0,0.92412341]
[1719813331729,5.5680509,63497.0,63496.0,0.92412341]
[1719813332903,5.5680509,63497.0,63496.0,0.95713025]
[1719813333105,5.56803997,63497.0,63496.0,0.95713025]
[1719813333713,5.56803997,63497.0,63496.0,1.00985228]
[1719813334004,5.5405294,63497.0,63496.0,1.00985228]
[1719813334601,5.5405294,63497.0,63496.0,1.05333913]
[1719813336266,5.52381895,63497.0,63496.0,1.05333913]
[1719813336474,5.54054057,63497.0,63496.0,1.05333913]
[1719813336823,5.54054057,63497.0,63496.0,1.07031196]
[1719813337377,5.58139585,63497.0,63496.0,1.07031196]
[1719813337876,5.58139585,63497.0,63496.0,1.08474112]
[1719813338845,5.52381895,63497.0,63496.0,1.08474112]
[1719813339050,5.58139227,63497.0,63496.0,1.08474112]
[1719813339247,5.58139227,63497.0,63496.0,1.07824112]
[1719813339479,5.54054115,63497.0,63496.0,1.07824112]
[1719813339686,5.58139091,63497.0,63496.0,1.07824112]
[1719813339882,5.52381895,63497.0,63496.0,1.07824112]
[1719813340087,5.58139091,63497.0,63496.0,1.07824112]
[1719813342833,5.5646319,63497.0,63496.0,1.07824112]
[1719813343011,5.58134952,63497.0,63496.0,1.07824112]
[1719813343820,5.74368323,63497.0,63496.0,1.07824112]
[1719813344627,5.58134952,63497.0,63496.0,1.07824112]
[1719813345556,6.82535152,63497.0,63496.0,1.07824112]
[1719813345915,6.64923995,63497.0,63496.0,1.07824112]
[1719813346173,6.70676677,63497.0,63496.0,1.07824112]
[1719813349195,6.64923995,63497.0,63496.0,1.07824112]
[1719813349399,6.70673722,63497.0,63496.0,1.07824112]
[1719813350164,4.24890203,63497.0,63496.0,1.07824112]
[1719813350366,4.16657478,63497.0,63496.0,1.07824112]
[1719813350590,4.00732703,63497.0,63496.0,1.07824112]
[1719813351535,4.00732703,63497.0,63496.0,1.21724112]
[1719813351536,3.13370803,63497.0,63496.0,1.21724112]
[1719813352055,3.0929233,63497.0,63496.0,1.21724112]
[1719813352287,3.0789233,63497.0,63496.0,1.21724112]
[1719813352495,3.07889534,63497.0,63496.0,1.21724112]
[1719813352867,3.09289534,63497.0,63496.0,1.21724112]
[1719813353077,3.07889534,63497.0,63496.0,1.21724112]
[1719813353247,3.22422224,63497.0,63496.0,1.21724112]
[1719813353466,3.23822224,63497.0,63496.0,1.21724112]
[1719813353667,3.25222224,63497.0,63496.0,1.21724112]
[1719813354393,3.09289534,63497.0,63496.0,1.21724112]
[1719813355651,3.0928894,63497.0,63496.0,1.21724112]
[1719813358869,3.09288928,63497.0,63496.0,1.21724112]
[1719813361258,3.09288011,63497.0,63496.0,1.21724112]
[1719813361681,3.07621076,63497.0,63496.0,1.21724112]
[1719813361997,3.0928801,63497.0,63496.0,1.21724112]
[1719813362848,4.1415251,63497.0,63496.0,1.21724112]
[1719813364514,4.12485576,63497.0,63496.0,1.21724112]
[1719813364687,4.14152508,63497.0,63496.0,1.21724112]
[1719813365892,4.14152508,63497.0,63496.0,1.07824112]
[1719813366918,4.1819817,63497.0,63496.0,1.07824112]
[1719813367359,4.2554817,63497.0,63496.0,1.07824112]
[1719813367865,4.26271927,63497.0,63496.0,1.07824112]
[1719813368392,4.26271927,63497.0,63496.0,1.07916512]
[1719813368850,4.56369427,63497.0,63496.0,1.07916512]
[1719813369211,4.57769427,63497.0,63496.0,1.07916512]
[1719813369551,4.56369427,63497.0,63496.0,1.07916512]
[1719813369883,4.57769427,63497.0,63496.0,1.07916512]
[1719813370615,4.56369427,63497.0,63496.0,1.07916512]
[1719813370853,4.56101545,63497.0,63496.0,1.07916512]
[1719813371163,4.48321609,63497.0,63496.0,1.07916512]
[1719813371326,4.49721609,63497.0,63496.0,1.07916512]
[1719813372263,4.18224109,63497.0,63496.0,1.07916512]
[1719813373743,4.3445748,63497.0,63496.0,1.07916512]
[1719813373951,4.34455557,63497.0,63496.0,1.07916512]
[1719813374367,4.34441885,63497.0,63496.0,1.07916512]
[1719813375371,4.34441885,63497.0,63496.0,1.22606512]
[1719813375372,2.57337314,63497.0,63496.0,1.22606512]
[1719813375593,2.36014377,63497.0,63496.0,1.22606512]
[1719813375890,2.23340755,63497.0,63496.0,1.22606512]
[1719813376322,2.21940755,63497.0,63496.0,1.22606512]
[1719813376697,2.23340755,63497.0,63496.0,1.22606512]
[1719813377053,2.2334962,63497.0,63496.0,1.22606512]
[1719813377499,2.2194962,63497.0,63496.0,1.22606512]
[1719813378147,2.2054962,63497.0,63496.0,1.22606512]
[1719813378617,2.2194962,63497.0,63496.0,1.22606512]
[1719813378963,2.59582991,63497.0,63496.0,1.07916512]
[1719813379367,2.63725428,63497.0,63496.0,1.07916512]
[1719813379672,2.47492057,63497.0,63496.0,1.07916512]
[1719813379863,2.27492057,63497.0,63496.0,1.07916512]
[1719813380068,2.47495567,63497.0,63496.0,1.07916512]
[1719813382133,2.47495567,63497.0,63496.0,1.21866512]
[1719813382989,2.43348451,63497.0,63496.0,1.21866512]
[1719813383344,2.43347365,63497.0,63496.0,1.21866512]
[1719813383763,4.05740665,63497.0,63496.0,1.21866512]
[1719813385182,4.09880405,63497.0,63496.0,1.21866512]
[1719813385385,4.09880405,63497.0,63496.0,1.07916512]
[1719813385937,4.41377905,63497.0,63496.0,1.07916512]
[1719813386087,4.42077905,63497.0,63496.0,1.07916512]
[1719813386501,4.42081376,63497.0,63496.0,1.07916512]
[1719813386650,4.56585329,63497.0,63496.0,1.07916512]
[1719813386854,4.50766229,63497.0,63496.0,1.07916512]
[1719813387142,4.56609569,63497.0,63496.0,1.07916512]
[1719813389601,4.5661869,63497.0,63496.0,1.07916512]
[1719813392182,4.42114737,63497.0,63496.0,1.07916512]
[1719813392633,4.36262276,63497.0,63496.0,1.07916512]
[1719813392925,4.4215829,63497.0,63496.0,1.07916512]
[1719813395910,4.42157131,63497.0,63496.0,1.07916512]
[1719813397962,4.73654631,63497.0,63496.0,0.44066512]
[1719813398243,5.205197,63497.0,63496.0,0.44066512]
[1719813398701,4.97238002,63497.0,63496.0,0.44066512]
[1719813398874,5.00395002,63497.0,63496.0,0.44066512]
[1719813399086,4.94500147,63497.0,63496.0,0.44066512]
[1719813399275,5.00427874,63497.0,63496.0,0.44066512]
[1719813399879,4.94500147,63497.0,63496.0,0.44066512]
[1719813400778,4.93100147,63497.0,63496.0,0.44066512]
[1719813401028,2.20787195,63492.0,63491.0,0.000924]
[1719813401196,6.12924493,63492.0,63491.0,0.000924]
[1719813401416,6.32924493,63492.0,63491.0,0.000924]
[1719813401629,6.40274493,63492.0,63491.0,0.000924]
[1719813402990,6.4442397,63492.0,63491.0,0.000924]
[1719813403198,2.08142695,63490.0,63489.0,0.04286495]
[1719813403370,7.46498076,63490.0,63489.0,0.04286495]
[1719813403508,7.46498076,63490.0,63489.0,0.01136295]
[1719813404111,7.4818207,63490.0,63489.0,0.01136295]
[1719813404311,7.48185916,63490.0,63489.0,0.01136295]
[1719813405765,7.42235916,63490.0,63489.0,0.01136295]
[1719813405963,7.43635916,63490.0,63489.0,0.01136295]
[1719813406366,7.42563016,63490.0,63489.0,0.01136295]
[1719813406775,7.40875176,63490.0,63489.0,0.01136295]
[1719813406984,7.42563626,63490.0,63489.0,0.01136295]
[1719813407306,7.58796997,63490.0,63489.0,0.01136295]
[1719813407888,7.51669826,63490.0,63489.0,9.5e-07]
[1719813408086,2.87781526,63490.0,63489.0,9.5e-07]
[1719813410928,2.87781692,63490.0,63489.0,9.5e-07]
[1719813411373,2.95121692,63490.0,63489.0,9.5e-07]
[1719813412157,2.95121692,63490.0,63489.0,0.07750095]
[1719813412301,0.38066195,63489.0,63485.0,0.0659]
[1719813412514,6.99165376,63489.0,63485.0,0.0659]
[1719813412905,7.03448289,63489.0,63485.0,0.0659]
[1719813413454,7.34949789,63489.0,63488.0,1e-06]
[1719813413944,7.38038405,63489.0,63488.0,1e-06]
[1719813414149,7.54271776,63489.0,63488.0,1e-06]
[1719813414330,7.49989669,63489.0,63488.0,1e-06]
[1719813414532,7.55677989,63489.0,63488.0,1e-06]
[1719813414730,7.53988567,63489.0,63488.0,1e-06]
[1719813414946,7.55677989,63489.0,63488.0,1e-06]
[1719813415150,7.39444618,63489.0,63488.0,1e-06]
[1719813416287,7.39448327,63489.0,63488.0,1e-06]
[1719813417682,7.37757997,63489.0,63488.0,1e-06]
[1719813417762,7.39447734,63489.0,63488.0,1e-06]
[1719813417980,2.00800895,63487.0,63486.0,0.14790114]
[1719813418180,6.48953876,63487.0,63486.0,0.14790114]
[1719813418425,6.52008576,63487.0,63486.0,0.14790114]
[1719813418581,6.43229376,63487.0,63486.0,0.14790114]
[1719813419194,6.46319109,63487.0,63486.0,0.14790114]
[1719813419398,6.50610234,63487.0,63486.0,0.14790114]
[1719813419628,6.47634434,63487.0,63486.0,0.14790114]
[1719813420028,6.49034434,63487.0,63486.0,0.14790114]
[1719813420820,6.49027711,63487.0,63486.0,0.14790114]
[1719813423428,6.49027711,63487.0,63481.0,0.000924]
[1719813423429,2.00807372,63482.0,63481.0,0.000924]
[1719813425036,6.1512118,63482.0,63481.0,0.142624]
[1719813425267,6.1045708,63482.0,63481.0,0.142624]
[1719813426233,6.0924388,63482.0,63481.0,0.142624]
[1719813426649,6.0926945,63482.0,63481.0,0.142624]
[1719813426806,6.07575988,63482.0,63481.0,0.142624]
[1719813427009,6.0926945,63482.0,63481.0,0.142624]
[1719813427611,6.0926945,63482.0,63481.0,0.000924]
[1719813428373,6.18763413,63482.0,63481.0,0.000924]
[1719813428733,6.28561113,63482.0,63481.0,0.000924]
[1719813429647,6.13053853,63482.0,63481.0,0.000924]
[1719813429853,6.23371928,63482.0,63481.0,0.000924]
[1719813430453,6.16157028,63482.0,63481.0,0.000924]
[1719813431767,6.43301328,63482.0,63481.0,1e-06]
[1719813431971,2.00832172,63473.0,63472.0,0.0801]
[1719813432170,2.39171553,63473.0,63472.0,0.0801]
[1719813432937,5.71438637,63473.0,63472.0,0.0801]
[1719813433229,5.47647337,63473.0,63472.0,0.0801]
[1719813433448,5.46247337,63473.0,63472.0,0.0801]
[1719813433957,5.47647337,63473.0,63472.0,0.0801]
[1719813434338,5.59274062,63473.0,63472.0,0.0801]
[1719813434598,5.60674062,63473.0,63472.0,0.0801]
[1719813434767,5.34431162,63473.0,63472.0,0.0801]
[1719813435066,4.81144335,63473.0,63472.0,0.0801]
[1719813435267,4.42296235,63473.0,63472.0,0.1454]
[1719813435580,4.22475635,63473.0,63472.0,0.1454]